bitfinex/quotes_SOLUSD_20241116
["timestamp","ask_amount","ask_price","bid_price","bid_amount"]
[1731798179447,22.88888679,214.41,214.35,16.3283]
[1731798179961,22.88888679,214.42,214.35,16.3283]
[1731798180342,23.776884,214.49,214.37,22.88888679]
[1731798180343,22.88888679,214.44,214.37,22.88888679]
[1731798180548,22.88888679,214.45,214.38,22.88888679]
[1731798180760,23.776884,214.49,214.35,39.21718679]
[1731798180761,22.88888679,214.43,214.35,39.21718679]
[1731798181340,22.88888679,214.42,214.35,39.21718679]
[1731798182157,22.88888679,214.41,214.35,16.3283]
[1731798182474,22.88888679,214.39,214.32,11.3121]
[1731798183159,22.88888679,214.4,214.32,34.20098679]
[1731798183557,22.88888679,214.4,214.32,45.86578679]
[1731798183952,22.88888679,214.37,214.29,22.88888679]
[1731798184173,22.88888679,214.35,214.27,57.49798679]
[1731798184381,22.88888679,214.36,214.29,4.6664]
[1731798184557,22.88888679,214.36,214.29,27.55528679]
[1731798184760,22.88888679,214.36,214.29,4.6664]
[1731798185978,22.88888679,214.35,214.29,4.6664]
[1731798186664,22.88888679,214.34,214.28,11.6669]
[1731798186981,22.88888679,214.33,214.28,11.6669]
[1731798187490,22.88888679,214.33,214.27,6.4068]
[1731798187861,22.88888679,214.34,214.27,6.4068]
[1731798188483,22.88888679,214.38,214.31,22.88888679]
[1731798188684,22.88888679,214.4,214.33,22.88888679]
[1731798188892,22.88888679,214.43,214.36,22.88888679]
[1731798189201,22.88888679,214.44,214.37,22.88888679]
[1731798189486,22.88888679,214.43,214.36,22.88888679]
[1731798189864,22.88888679,214.43,214.36,27.55368679]
[1731798190063,22.88888679,214.43,214.3,16.5353]
[1731798190064,22.88888679,214.4,214.33,22.88888679]
[1731798190385,22.88888679,214.42,214.35,22.88888679]
[1731798190983,16.4192,214.47,214.31,4.6661]
[1731798191185,16.4192,214.47,214.31,11.6653]
[1731798191186,22.88888679,214.36,214.31,11.6653]
[1731798191480,22.88888679,214.35,214.27,29.29568679]
[1731798191664,22.88888679,214.33,214.27,11.0736]
[1731798191860,22.88888679,214.31,214.26,11.6675]
[1731798192371,22.88888679,214.32,214.26,16.3347]
[1731798195971,27.55488679,214.32,214.26,11.6675]
[1731798197274,27.05488679,214.32,214.26,16.3347]
[1731798198368,27.55358679,214.38,214.3,22.88888679]
[1731798198590,11.6582,214.45,214.32,22.88888679]
[1731798198591,22.88888679,214.4,214.32,22.88888679]
[1731798199289,27.55308679,214.4,214.33,4.6657]
[1731798199873,22.88888679,214.38,214.31,16.3308]
[1731798200676,22.88888679,214.38,214.32,22.88888679]
[1731798200878,22.88888679,214.4,214.32,22.88888679]
[1731798201073,22.88888679,214.44,214.36,22.88888679]
[1731798201279,27.55228679,214.44,214.36,27.55368679]
[1731798201499,22.88888679,214.42,214.36,4.6648]
[1731798202385,22.88888679,214.42,214.36,27.55368679]
[1731798202577,22.88888679,214.38,214.33,6.326]
[1731798202769,22.88888679,214.34,214.28,6.326]
[1731798202989,22.88888679,214.32,214.25,28.2035]
[1731798203774,22.88888679,214.26,214.23,6.326]
[1731798204002,22.88888679,214.24,214.19,15.9415]
[1731798204291,22.88888679,214.22,214.17,11.6729]
[1731798204680,27.55668679,214.24,214.17,34.56178679]
[1731798204873,22.88888679,214.25,214.18,22.88888679]
[1731798205075,11.7655,214.31,214.17,16.342]
[1731798205076,4.6673,214.26,214.2,22.88888679]
[1731798205374,22.88888679,214.24,214.17,11.6729]
[1731798205697,22.88888679,214.3,214.23,22.88888679]
[1731798206192,22.88888679,214.28,214.21,22.88888679]
[1731798207199,22.88888679,214.28,214.21,27.55708679]
[1731798207695,22.88888679,214.3,214.23,22.88888679]
[1731798208003,27.55458679,214.33,214.26,22.88888679]
[1731798208371,27.55458679,214.33,214.24,22.88888679]
[1731798208597,22.88888679,214.33,214.24,22.88888679]
[1731798208805,22.88888679,214.33,214.26,22.88888679]
[1731798209100,4.6653,214.35,214.26,22.88888679]
[1731798209101,27.55418679,214.35,214.26,22.88888679]
[1731798209308,22.88888679,214.31,214.23,6.5747]
[1731798209508,22.88888679,214.29,214.23,6.5747]
[1731798209872,22.88888679,214.29,214.22,22.88888679]
[1731798210504,27.55548679,214.29,214.22,22.88888679]
[1731798210871,27.55548679,214.29,214.22,27.55688679]
[1731798212592,27.55548679,214.29,214.22,22.88888679]
[1731798212972,27.55548679,214.29,214.21,11.6707]
[1731798213173,27.55548679,214.29,214.18,6.5747]
[1731798213174,22.88888679,214.25,214.18,29.46358679]
[1731798213374,22.88888679,214.23,214.16,34.56208679]
[1731798213587,22.88888679,214.23,214.16,39.23148679]
[1731798213971,22.88888679,214.24,214.16,39.23148679]
[1731798214300,22.88888679,214.24,214.17,22.88888679]
[1731798215409,27.55658679,214.24,214.17,22.88888679]
[1731798215585,4.6677,214.24,214.17,27.55798679]
[1731798215787,22.88888679,214.28,214.21,22.88888679]
[1731798215996,22.88888679,214.27,214.2,22.88888679]
[1731798216303,22.88888679,214.29,214.21,22.88888679]
[1731798216803,22.88888679,214.28,214.21,27.55698679]
[1731798216983,22.88888679,214.27,214.21,4.6681]
[1731798217574,22.88888679,214.31,214.21,4.6681]
[1731798217777,22.88888679,214.33,214.26,22.88888679]
[1731798218180,22.88888679,214.34,214.27,22.88888679]
[1731798218385,22.5262,214.39,214.24,6.5747]
[1731798218386,22.88888679,214.33,214.25,39.07628679]
[1731798219000,22.88888679,214.33,214.26,4.6672]
[1731798219580,22.88888679,214.3,214.25,27.8558]
[1731798219780,22.88888679,214.29,214.21,34.55958679]
[1731798220079,22.88888679,214.29,214.21,39.22778679]
[1731798220696,22.88888679,214.28,214.21,34.55958679]
[1731798220878,4.6674,214.25,214.19,16.1874]
[1731798221078,22.88888679,214.22,214.17,11.6729]
[1731798221300,22.88888679,214.24,214.17,11.6729]
[1731798222301,22.88888679,214.2,214.13,18.4165198]
[1731798222483,22.88888679,214.2,214.13,6.7414198]
[1731798222685,22.88888679,214.18,214.13,0.5430198]
[1731798223114,27.55798679,214.18,214.13,0.5430198]
[1731798224282,22.88888679,214.14,214.13,0.5430198]
[1731798225283,27.55868679,214.14,214.13,0.5430198]
[1731798225791,22.88888679,214.14,214.13,0.5430198]
[1731798231014,22.88888679,214.15,214.13,0.5430198]
[1731798231221,22.88888679,214.19,214.13,5.2130198]
[1731798231510,22.88888679,214.18,214.13,0.5430198]
[1731798231693,22.88888679,214.17,214.13,0.5430198]
[1731798232913,22.88888679,214.15,214.13,0.5430198]
[1731798233116,22.88888679,214.16,214.13,0.5430198]
[1731798233994,22.88888679,214.17,214.13,0.5430198]
[1731798234211,22.88888679,214.16,214.13,0.5430198]
[1731798234420,22.88888679,214.15,214.13,0.5430198]
[1731798234712,22.88888679,214.14,214.13,0.5430198]
[1731798235085,46.66577079,214.14,214.13,0.5430198]
[1731798236215,51.43557079,214.14,214.13,0.5430198]
[1731798237013,57.83097079,214.14,214.13,0.5430198]
[1731798237804,0.1,214.1,214.03,0.86317254]
[1731798238002,22.88888679,214.06,214.03,0.86317254]
[1731798238188,22.88888679,214.07,214.03,0.86317254]
[1731798238396,22.88888679,214.08,214.03,0.86317254]
[1731798238704,22.88888679,214.04,214.03,0.86317254]
[1731798238889,22.88888679,214.05,214.03,0.86317254]
[1731798239092,22.88888679,214.04,214.03,0.36317254]
[1731798240828,4.6719,214.05,214.03,0.36317254]
[1731798241601,27.56078679,214.05,214.03,0.36317254]
[1731798241923,22.88888679,214.08,214.03,0.36317254]
[1731798242113,22.88888679,214.14,214.07,22.88888679]
[1731798242316,0.1,214.18,214.04,4.672]
[1731798242317,22.88888679,214.18,214.11,22.88888679]
[1731798242505,4.6678,214.23,214.12,22.88888679]
[1731798242813,4.6678,214.23,214.11,11.6758]
[1731798243024,0.1,214.18,214.07,6.5592]
[1731798243318,0.2,214.19,214.05,21.0117]
[1731798243725,22.88888679,214.12,214.05,43.90058679]
[1731798244300,22.88888679,214.1,214.03,27.92415933]
[1731798244808,23.776884,214.1,214.03,27.92415933]
[1731798245194,22.88888679,214.11,214.04,22.88888679]
[1731798245517,22.88888679,214.14,214.07,22.88888679]
[1731798245717,22.88888679,214.14,214.06,22.88888679]
[1731798245906,30.09552998,214.18,214.11,22.88888679]
[1731798246224,4.6675,214.25,214.07,0.1]
[1731798246519,0.1,214.23,214.08,16.34]
[1731798246903,0.1,214.21,214.08,16.34]
[1731798247105,0.1,214.21,214.03,40.07707254]
[1731798247106,0.1,214.19,214.07,11.6782]
[1731798247438,22.88888679,214.11,214.05,4.6717]
[1731798247595,22.98888679,214.17,214.05,4.6717]
[1731798247596,22.88888679,214.12,214.05,4.6717]
[1731798247800,22.88888679,214.12,214.05,27.56058679]
[1731798248100,22.88888679,214.16,214.08,22.88888679]
[1731798249003,22.88888679,214.19,214.12,22.88888679]
[1731798249209,22.88888679,214.2,214.12,22.88888679]
[1731798249404,22.88888679,214.21,214.13,22.88888679]
[1731798249607,22.88888679,214.2,214.13,22.88888679]
[1731798249804,4.668,214.23,214.15,22.88888679]
[1731798249805,22.88888679,214.23,214.15,22.88888679]
[1731798250017,4.6674,214.25,214.06,22.88888679]
[1731798250018,22.88888679,214.21,214.14,22.88888679]
[1731798250215,22.88888679,214.2,214.13,29.44808679]
[1731798250523,22.88888679,214.14,214.08,6.5592]
[1731798251022,0.1,214.21,214.08,29.44808679]
[1731798251023,22.88888679,214.15,214.08,29.44808679]
[1731798251228,22.88888679,214.15,214.09,4.6709]
[1731798251525,22.88888679,214.18,214.1,22.88888679]
[1731798251827,22.88888679,214.15,214.09,16.3482]
[1731798252632,22.88888679,214.17,214.09,39.23708679]
[1731798252829,76.75046302,214.36,214.09,39.23708679]
[1731798252830,22.88888679,214.21,214.14,22.88888679]
[1731798253128,22.88888679,214.22,214.15,22.88888679]
[1731798253506,7.20221385,214.28,214.19,22.88888679]
[1731798253728,4.6667,214.29,214.1,23.776884]
[1731798253729,22.88888679,214.25,214.17,22.88888679]
[1731798253900,4.6667,214.29,214.16,16.34]
[1731798253901,22.88888679,214.27,214.19,22.88888679]
[1731798254626,22.88888679,214.28,214.21,22.88888679]
[1731798254816,22.88888679,214.29,214.21,22.88888679]
[1731798255019,22.88888679,214.27,214.2,22.899]
[1731798255702,22.88888679,214.27,214.2,45.78788679]
[1731798255906,22.88888679,214.28,214.21,22.88888679]
[1731798256623,22.88888679,214.28,214.22,22.88888679]
[1731798256805,22.88888679,214.31,214.24,22.88888679]
[1731798257409,22.88888679,214.3,214.23,16.3375]
[1731798257610,4.6652,214.35,214.21,4.6682]
[1731798257611,22.88888679,214.26,214.21,4.6682]
[1731798257929,22.88888679,214.28,214.2,45.78778679]
[1731798258316,22.88888679,214.27,214.2,45.78778679]
[1731798259026,22.88888679,214.27,214.2,22.8989]
[1731798259225,22.88888679,214.25,214.2,22.8989]
[1731798259428,22.88888679,214.23,214.15,22.9025]
[1731798259726,4.6668,214.28,214.15,22.9025]
[1731798259925,22.88888679,214.23,214.15,45.79138679]
[1731798260926,22.88888679,214.22,214.15,22.9025]
[1731798261122,22.88888679,214.21,214.15,22.9025]
[1731798261323,22.88888679,214.22,214.15,22.9025]
[1731798261830,22.88888679,214.23,214.16,22.88888679]
[1731798262030,22.88888679,214.25,214.18,22.88888679]
[1731798262912,22.88888679,214.3,214.22,22.88888679]
[1731798263113,22.88888679,214.31,214.24,22.88888679]
[1731798263425,22.88888679,214.29,214.21,39.00848679]
[1731798263627,22.88888679,214.29,214.22,22.88888679]
[1731798263831,4.6652,214.35,214.23,22.88888679]
[1731798263832,22.88888679,214.3,214.23,22.88888679]
[1731798264029,22.88888679,214.3,214.24,4.6676]
[1731798264234,22.88888679,214.29,214.24,4.6676]
[1731798265011,22.88888679,214.25,214.17,22.88888679]
[1731798265212,4.666,214.32,214.15,11.6737]
[1731798265213,22.88888679,214.19,214.15,11.6737]
[1731798265406,22.88888679,214.24,214.16,22.88888679]
[1731798265630,4.666,214.32,214.18,22.88888679]
[1731798265926,4.666,214.32,214.15,39.6914]
[1731798266118,22.88888679,214.25,214.17,22.88888679]
[1731798266431,22.88888679,214.25,214.18,22.88888679]
[1731798266732,22.88888679,214.27,214.19,22.88888679]
[1731798267708,22.88888679,214.27,214.2,16.3398]
[1731798267912,22.88888679,214.3,214.23,22.88888679]
[1731798268313,22.88888679,214.3,214.21,28.95418679]
[1731798268528,22.88888679,214.3,214.22,22.88888679]
[1731798268831,22.88888679,214.29,214.21,28.95418679]
[1731798269042,22.88888679,214.29,214.22,16.3382]
[1731798269265,22.88888679,214.29,214.23,16.1196]
[1731798269421,22.88888679,214.31,214.23,39.00848679]
[1731798269729,22.88888679,214.29,214.23,16.1196]
[1731798269923,22.88888679,214.29,214.23,39.00848679]
[1731798270316,22.88888679,214.31,214.23,39.00848679]
[1731798270518,22.88888679,214.33,214.25,22.88888679]
[1731798270822,14.36346894,214.33,214.25,14.36346894]
[1731798271020,4.6644,214.39,214.29,14.36346894]
[1731798271217,167.94502102,214.48,214.33,14.36346894]
[1731798271218,14.36346894,214.41,214.33,14.36346894]
[1731798271421,14.36346894,214.43,214.35,14.36346894]
[1731798271620,14.36346894,214.41,214.33,14.36346894]
[1731798272514,14.36346894,214.41,214.34,16.3291]
[1731798272727,20.780869,214.49,214.37,14.36346894]
[1731798272728,14.36346894,214.45,214.37,14.36346894]
[1731798272911,22.95605888,214.47,214.39,22.95605888]
[1731798273621,22.95605888,214.49,214.41,22.95605888]
[1731798273928,22.95605888,214.49,214.34,54.8286]
[1731798273929,22.95605888,214.52,214.44,22.95605888]
[1731798274258,22.95605888,214.5,214.42,22.95605888]
[1731798274420,22.95605888,214.54,214.46,22.95605888]
[1731798276045,22.95605888,214.57,214.48,22.95605888]
[1731798276341,22.95605888,214.55,214.48,22.95605888]
[1731798276539,22.95605888,214.51,214.46,11.657]
[1731798276931,22.95605888,214.52,214.46,16.3198]
[1731798277923,22.95605888,214.52,214.46,39.27585888]
[1731798278942,22.95605888,214.54,214.46,39.27585888]
[1731798280438,22.95605888,214.56,214.49,16.3177]
[1731798280640,22.95605888,214.54,214.49,16.3177]
[1731798280842,22.95605888,214.52,214.49,11.6555]
[1731798281044,4.6601,214.59,214.46,15.1721]
[1731798281045,22.95605888,214.5,214.46,15.1721]
[1731798281340,4.6601,214.59,214.46,19.8348]
[1731798281341,22.95605888,214.54,214.46,19.8348]
[1731798281640,22.95605888,214.56,214.49,22.95605888]
[1731798282350,22.95605888,214.6,214.51,22.95605888]
[1731798282637,6.8604198,214.67,214.53,22.95605888]
[1731798282638,22.95605888,214.62,214.53,22.95605888]
[1731798284314,22.95605888,214.62,214.54,16.3139]
[1731798284653,22.95605888,214.62,214.46,38.4864]
[1731798284654,22.95605888,214.56,214.49,34.61115888]
[1731798284821,22.95605888,214.56,214.49,11.6551]
[1731798285427,22.95605888,214.54,214.49,11.6551]
[1731798285630,22.95605888,214.54,214.49,16.3173]
[1731798286238,22.95605888,214.54,214.49,11.6551]
[1731798289436,22.95605888,214.56,214.49,16.3173]
[1731798290749,22.95605888,214.55,214.49,11.6551]
[1731798291729,0.1,214.63,214.53,22.95605888]
[1731798291730,22.95605888,214.62,214.53,22.95605888]
[1731798292135,22.95605888,214.6,214.53,22.95605888]
[1731798292342,22.95605888,214.6,214.51,22.95605888]
[1731798292926,22.95605888,214.58,214.49,34.61115888]
[1731798293153,22.95605888,214.54,214.5,4.6618]
[1731798293646,22.95605888,214.56,214.5,4.6618]
[1731798293854,22.95605888,214.58,214.51,22.95605888]
[1731798294064,22.95605888,214.54,214.48,4.6622]
[1731798294236,22.95605888,214.52,214.48,4.6622]
[1731798294560,22.95605888,214.53,214.48,4.6622]
[1731798296155,22.95605888,214.54,214.48,4.6622]
[1731798296339,22.95605888,214.53,214.48,4.6622]
[1731798297238,22.95605888,214.54,214.48,4.6622]
[1731798297652,22.95605888,214.57,214.5,22.95605888]
[1731798297859,22.95605888,214.58,214.5,22.95605888]
[1731798298241,22.95605888,214.61,214.53,38.94375888]
[1731798299244,22.95605888,214.63,214.55,29.35325888]
[1731798299564,22.95605888,214.63,214.56,16.3124]
[1731798300267,23.49907868,214.67,214.59,22.95605888]
[1731798300440,0.5430198,214.67,214.64,22.95605888]
[1731798300643,0.5430198,214.67,214.63,22.95605888]
[1731798300956,0.5430198,214.67,214.66,42.95605888]
[1731798301162,0.5430198,214.67,214.66,49.14585888]
[1731798301381,0.5430198,214.67,214.66,53.80435888]
[1731798301658,0.5430198,214.67,214.66,6.1898]
[1731798302157,0.5430198,214.67,214.61,6.1898]
[1731798302158,23.49907868,214.67,214.61,6.1898]
[1731798302359,22.95605888,214.64,214.61,6.1898]
[1731798302575,22.95605888,214.62,214.6,15.9504]
[1731798302748,23.776884,214.6,214.55,11.6519]
[1731798302954,5.2014198,214.67,214.54,22.95605888]
[1731798303161,5.2014198,214.67,214.53,55.22095888]
[1731798303659,22.95605888,214.6,214.53,32.2649]
[1731798304041,23.776884,214.62,214.55,39.26915888]
[1731798304369,22.95605888,214.63,214.56,22.95605888]
[1731798304669,22.95605888,214.65,214.56,22.95605888]
[1731798304854,22.95605888,214.66,214.58,22.95605888]
[1731798305243,0.5430198,214.67,214.62,22.95605888]
[1731798305544,23.49907868,214.67,214.6,22.95605888]
[1731798305744,22.95605888,214.66,214.58,22.95605888]
[1731798306146,23.49907868,214.67,214.6,22.95605888]
[1731798306364,0.5430198,214.67,214.6,22.95605888]
[1731798306769,0.5430198,214.67,214.62,29.14585888]
[1731798307079,0.5430198,214.67,214.63,20.0]
[1731798307373,0.5430198,214.67,214.66,22.95605888]
[1731798308258,0.5430198,214.67,214.66,27.61455888]
[1731798308780,0.5430198,214.67,214.66,47.61455888]
[1731798309071,22.95605888,214.79,214.67,20.0]
[1731798309377,22.95605888,214.79,214.7,22.95605888]
[1731798310160,16.5437,214.88,214.73,22.95605888]
[1731798310161,4.6541,214.86,214.73,22.95605888]
[1731798310357,22.95605888,214.83,214.75,22.95605888]
[1731798310679,22.95605888,214.84,214.77,22.95605888]
[1731798311876,22.95605888,214.86,214.78,22.95605888]
[1731798312171,22.95605888,214.88,214.81,39.24935888]
[1731798312348,0.5430198,214.89,214.82,22.95605888]
[1731798312349,23.49907868,214.89,214.82,22.95605888]
[1731798312550,22.95605888,214.87,214.81,16.2933]
[1731798312969,22.95605888,214.86,214.81,16.2933]
[1731798313776,22.95605888,214.87,214.81,16.2933]
[1731798314073,22.95605888,214.87,214.81,11.6381]
[1731798314372,22.95605888,214.82,214.77,4.656]
[1731798314977,22.95605888,214.83,214.77,4.656]
[1731798315154,22.95605888,214.83,214.77,16.2963]
[1731798315564,22.95605888,214.79,214.71,6.1898]
[1731798315756,22.95605888,214.77,214.71,10.8471]
[1731798316062,22.95605888,214.78,214.71,29.14585888]
[1731798316265,22.95605888,214.81,214.74,22.95605888]
[1731798316459,4.6544,214.85,214.71,17.8334]
[1731798316460,22.95605888,214.82,214.75,22.95605888]
[1731798316950,22.95605888,214.84,214.76,22.95605888]
[1731798317468,22.95605888,214.85,214.78,38.90645888]
[1731798318154,22.95605888,214.85,214.79,4.6557]
[1731798318778,22.95605888,214.84,214.79,4.6557]
[1731798320369,22.95605888,214.81,214.78,15.9504]
[1731798320675,22.95605888,214.8,214.78,15.9504]
[1731798320878,22.95605888,214.79,214.78,15.9504]
[1731798321392,46.73294288,214.79,214.78,15.9504]
[1731798323721,28.432784,214.78,214.63,16.3066]
[1731798324006,22.95605888,214.69,214.63,16.3066]
[1731798325104,22.95605888,214.69,214.63,11.6476]
[1731798325527,22.95605888,214.65,214.6,4.6596]
[1731798326010,22.95605888,214.67,214.6,4.6596]
[1731798326204,22.95605888,214.67,214.6,16.3091]
[1731798327105,22.95605888,214.67,214.6,39.26515888]
[1731798327284,22.95605888,214.73,214.65,22.95605888]
[1731798328623,23.776884,214.72,214.66,22.95605888]
[1731798329907,23.776884,214.72,214.65,39.26155888]
[1731798331037,0.1,214.79,214.65,39.26155888]
[1731798331038,22.95605888,214.75,214.68,22.95605888]
[1731798331236,22.95605888,214.76,214.69,22.95605888]
[1731798332036,22.95605888,214.75,214.68,22.95605888]
[1731798332429,22.95605888,214.72,214.65,22.95605888]
[1731798332615,22.95605888,214.71,214.63,22.95605888]
[1731798333141,22.95605888,214.66,214.61,4.6596]
[1731798333320,22.95605888,214.65,214.61,4.6596]
[1731798333529,22.95605888,214.64,214.59,11.6498]
[1731798333725,22.95605888,214.65,214.59,11.6498]
[1731798333922,22.95605888,214.67,214.59,34.60585888]
[1731798334124,6.2533,214.75,214.61,22.95605888]
[1731798334125,22.95605888,214.69,214.61,22.95605888]
[1731798334352,22.95605888,214.71,214.63,22.95605888]
[1731798334711,22.95605888,214.71,214.64,39.51755888]
[1731798335021,22.95605888,214.74,214.67,20.0]
[1731798335522,22.95605888,214.73,214.67,20.0]
[1731798336244,22.95605888,214.73,214.68,4.658]
[1731798337521,22.95605888,214.71,214.67,11.6455]
[1731798337743,22.95605888,214.69,214.67,11.6455]
[1731798337933,22.95605888,214.68,214.67,11.6455]
[1731798338125,22.95605888,214.7,214.67,11.6455]
[1731798338639,22.95605888,214.7,214.63,16.307]
[1731798339145,22.95605888,214.67,214.63,16.307]
[1731798339940,22.95605888,214.69,214.63,16.307]
[1731798340565,22.95605888,214.7,214.63,16.307]
[1731798341716,22.95605888,214.69,214.63,16.307]
[1731798341953,22.95605888,214.64,214.59,16.3101]
[1731798342239,22.95605888,214.65,214.59,16.3101]
[1731798342448,22.95605888,214.66,214.59,39.26615888]
[1731798342945,22.95605888,214.63,214.59,16.3101]
[1731798343144,22.95605888,214.63,214.56,22.95605888]
[1731798343445,22.95605888,214.68,214.61,22.95605888]
[1731798343626,22.95605888,214.69,214.61,22.95605888]
[1731798344040,22.95605888,214.71,214.63,22.95605888]
[1731798344363,22.95605888,214.71,214.59,0.1]
[1731798344364,22.95605888,214.72,214.65,22.95605888]
[1731798344862,22.95605888,214.72,214.64,22.95605888]
[1731798345063,22.95605888,214.71,214.64,22.95605888]
[1731798345236,22.95605888,214.72,214.65,39.26155888]
[1731798346260,22.95605888,214.75,214.68,42.95605888]
[1731798346467,22.95605888,214.76,214.69,22.95605888]
[1731798346842,22.95605888,214.76,214.68,22.95605888]
[1731798347365,22.95605888,214.76,214.69,16.3024]
[1731798349366,22.95605888,214.75,214.69,11.6446]
[1731798349571,22.95605888,214.74,214.69,11.6446]
[1731798350146,22.95605888,214.73,214.69,11.6446]
[1731798350556,22.95605888,214.74,214.69,11.6446]
[1731798350878,22.95605888,214.75,214.69,11.6446]
[1731798351043,22.95605888,214.73,214.69,11.6446]
[1731798352568,22.95605888,214.73,214.67,4.6583]
[1731798352874,22.95605888,214.68,214.6,6.3136]
[1731798353072,22.95605888,214.66,214.6,16.3092]
[1731798353253,22.95605888,214.64,214.6,11.6494]
[1731798354069,22.95605888,214.64,214.57,4.6603]
[1731798354449,22.95605888,214.62,214.57,4.6603]
[1731798354646,22.95605888,214.62,214.57,24.6603]
[1731798355045,22.95605888,214.62,214.57,4.6603]
[1731798355447,27.61505888,214.64,214.57,4.6603]
[1731798355653,22.95605888,214.62,214.55,16.3125]
[1731798355872,22.95605888,214.6,214.55,16.3125]
[1731798356082,22.95605888,214.62,214.55,16.3125]
[1731798356572,22.95605888,214.67,214.59,22.95605888]
[1731798357082,22.95605888,214.71,214.64,22.95605888]
[1731798357371,22.95605888,214.74,214.67,22.95605888]
[1731798358667,22.95605888,214.74,214.68,4.658]
[1731798359461,22.95605888,214.75,214.68,39.25925888]
[1731798359662,22.95605888,214.76,214.69,22.95605888]
[1731798360485,22.95605888,214.8,214.72,22.95605888]
[1731798360675,22.95605888,214.8,214.73,4.657]
[1731798360989,27.61155888,214.8,214.73,4.657]
[1731798361202,22.95605888,214.8,214.73,16.2995]
[1731798361379,22.95605888,214.81,214.73,39.25555888]
[1731798361880,22.95605888,214.84,214.77,22.95605888]
[1731798362092,6.3557,214.88,214.73,39.5845]
[1731798362093,22.95605888,214.86,214.78,22.95605888]
[1731798362387,22.95605888,214.88,214.8,22.95605888]
[1731798363109,22.95605888,214.88,214.81,16.2933]
[1731798363393,27.60985888,214.88,214.81,11.6381]
[1731798363601,22.95605888,214.83,214.78,6.2993]
[1731798363794,22.95605888,214.8,214.73,6.2993]
[1731798363974,22.95605888,214.76,214.71,26.6868]
[1731798364173,22.95605888,214.83,214.71,26.6868]
[1731798364379,23.776884,214.82,214.71,11.6432]
[1731798364687,22.95605888,214.73,214.68,6.2993]
[1731798364994,22.95605888,214.73,214.66,31.3481]
[1731798365174,22.95605888,214.73,214.66,54.30415888]
[1731798365681,22.95605888,214.76,214.69,22.95605888]
[1731798366074,22.95605888,214.76,214.69,20.0]
[1731798366265,22.95605888,214.72,214.66,31.3481]
[1731798366698,22.95605888,214.73,214.66,31.3481]
[1731798367104,22.95605888,214.76,214.69,22.95605888]
[1731798367400,22.95605888,214.74,214.67,22.95605888]
[1731798367580,22.95605888,214.74,214.66,31.3481]
[1731798368078,22.95605888,214.72,214.66,31.3481]
[1731798368708,22.95605888,214.77,214.7,20.0]
[1731798369006,22.95605888,214.78,214.71,22.95605888]
[1731798369380,22.95605888,214.83,214.75,22.95605888]
[1731798369588,22.95605888,214.83,214.76,20.0]
[1731798370200,22.95605888,214.83,214.77,4.6561]
[1731798371685,22.95605888,214.79,214.73,6.2993]
[1731798371879,22.95605888,214.74,214.7,11.6439]
[1731798372307,22.95605888,214.73,214.7,11.6439]
[1731798373388,22.95605888,214.73,214.68,4.658]
[1731798373590,22.95605888,214.73,214.67,6.2993]
[1731798373784,22.95605888,214.75,214.68,22.95605888]
[1731798374108,27.61265888,214.75,214.67,22.6032]
[1731798374293,22.95605888,214.71,214.67,16.3039]
[1731798375134,22.95605888,214.69,214.63,4.6591]
[1731798375430,22.95605888,214.69,214.62,17.9474]
[1731798375431,22.95605888,214.67,214.62,16.3074]
[1731798375733,22.95605888,214.63,214.58,11.6506]
[1731798375912,22.95605888,214.61,214.58,11.6506]
[1731798376112,22.95605888,214.61,214.55,19.7044]
[1731798376435,22.95605888,214.6,214.53,39.27025888]
[1731798376608,181.4326,214.69,214.53,39.27025888]
[1731798376609,22.95605888,214.61,214.53,39.27025888]
[1731798377027,22.95605888,214.61,214.55,22.95605888]
[1731798377225,22.95605888,214.65,214.57,22.95605888]
[1731798377410,22.95605888,214.63,214.55,22.95605888]
[1731798377611,22.95605888,214.61,214.54,4.661]
[1731798377927,22.95605888,214.62,214.56,22.95605888]
[1731798378228,22.95605888,214.64,214.56,22.95605888]
[1731798378412,22.95605888,214.63,214.56,22.95605888]
[1731798379009,22.95605888,214.63,214.57,20.0]
[1731798379231,22.95605888,214.7,214.62,22.95605888]
[1731798379414,22.95605888,214.71,214.63,22.95605888]
[1731798379609,22.95605888,214.7,214.64,22.95605888]
[1731798379810,22.95605888,214.67,214.6,37.99965888]
[1731798380006,22.95605888,214.67,214.6,15.0436]
[1731798380229,22.95605888,214.71,214.64,22.95605888]
[1731798380938,22.95605888,214.75,214.68,22.95605888]
[1731798381139,22.95605888,214.77,214.7,39.25775888]
[1731798381334,22.95605888,214.78,214.7,39.25775888]
[1731798381511,22.95605888,214.76,214.7,16.3017]
[1731798382339,22.95605888,214.72,214.65,11.6465]